fUSD/lending_fUSD_20260611
["ID","MTS","AMOUNT","RATE_DAILY","PERIOD"]
[424768385,1781143842000,-200.0,0.00015455,2]
[424768359,1781143842000,-200.0,0.0001515,2]
[424768382,1781143842000,-200.0,0.000154,2]
[424768360,1781143842000,-500.0,0.00015151,2]
[424768361,1781143842000,-255.79451904,0.000152,2]
[424768364,1781143842000,-923.0,0.000152,2]
[424768363,1781143842000,-5060.50245357,0.000152,2]
[424768365,1781143842000,-286.26076,0.000152,2]
[424768367,1781143842000,-693.23,0.000153,2]
[424768370,1781143842000,-200.0,0.00015301,2]
[424768373,1781143842000,-300.0,0.00015309,2]
[424768369,1781143842000,-200.0,0.00015301,2]
[424768368,1781143842000,-200.0,0.00015301,2]
[424768371,1781143842000,-300.0,0.00015309,2]
[424768366,1781143842000,-351.69,0.000153,2]
[424768374,1781143842000,-687.07472415,0.00015309,2]
[424768383,1781143842000,-309.0,0.000154,2]
[424768387,1781143842000,-400.0,0.000155,2]
[424768386,1781143842000,-200.0,0.00015455,2]
[424768381,1781143842000,-286.26075,0.000154,2]
[424768379,1781143842000,-800.81262,0.000154,2]
[424768377,1781143842000,-400.0,0.000154,2]
[424768384,1781143842000,-1000.0,0.000154,2]
[424768380,1781143842000,-316.0,0.000154,2]
[424768375,1781143842000,-3439.88418942,0.0001536,2]
[424768376,1781143842000,-630.97,0.00015374,2]
[424768372,1781143842000,-666.0,0.00015309,2]
[424768378,1781143842000,-5060.50245357,0.000154,2]
[424768468,1781143843000,-551.06,0.00018176,2]
[424768464,1781143843000,-166.08642978,0.00018,2]
[424768466,1781143843000,-3620.0,0.00018147,2]
[424768461,1781143843000,-1934.38338736,0.00017804,2]
[424768462,1781143843000,-7872.34457716,0.00018,2]
[424768465,1781143843000,-350.0,0.00018,2]
[424768459,1781143843000,-212.5,0.00017262,2]
[424768469,1781143843000,-166.08642978,0.000182,2]
[424768467,1781143843000,-168.90688265,0.00018176,2]
[424768457,1781143843000,-168.90688265,0.00017153,2]
[424768460,1781143843000,-283.348021,0.00017477,2]
[424768471,1781143843000,-2005.9555727,0.00018352,2]
[424768463,1781143843000,-227.45964902,0.00018,2]
[424768470,1781143843000,-1125.0,0.00018337,2]
[424768483,1781143843000,-6076.0,0.00018806,2]
[424768473,1781143843000,-166.08642978,0.000184,2]
[424768476,1781143843000,-3000.0,0.00018462,2]
[424768472,1781143843000,-10589.39369475,0.00018384,2]
[424768475,1781143843000,-630.97,0.00018449,2]
[424768477,1781143843000,-151.79021661,0.00018462,2]
[424768478,1781143843000,-575.73060654,0.00018462,2]
[424768481,1781143843000,-782.861,0.00018806,2]
[424768480,1781143843000,-500.0,0.00018795,2]
[424768479,1781143843000,-500.0,0.00018767,2]
[424768482,1781143843000,-3666.425,0.00018806,2]
[424768484,1781143843000,-452.27,0.000189,2]
[424768486,1781143843000,-153.80113636,0.000189,2]
[424768485,1781143843000,-153.0824764,0.000189,2]
[424768487,1781143843000,-1030.0,0.000189,2]
[424768474,1781143843000,-433.9,0.0001841,2]
[424768458,1781143843000,-1865.36488656,0.00017256,2]
[424768427,1781143843000,-372.91906083,0.00016199,2]
[424768455,1781143843000,-1798.80895522,0.00016708,2]
[424768428,1781143843000,-5060.50245357,0.000162,2]
[424768424,1781143843000,-300.0,0.00016199,2]
[424768430,1781143843000,-12942.03,0.000162,2]
[424768429,1781143843000,-3685.07,0.000162,2]
[424768425,1781143843000,-300.0,0.00016199,2]
[424768432,1781143843000,-5060.50245357,0.000163,2]
[424768431,1781143843000,-297.99,0.000162,2]
[424768434,1781143843000,-608.54,0.0001638,2]
[424768436,1781143843000,-501.80290779,0.0001643,2]
[424768435,1781143843000,-452.27,0.000164,2]
[424768433,1781143843000,-5018.95551406,0.00016311,2]
[424768437,1781143843000,-433.9,0.00016438,2]
[424768440,1781143843000,-151.0,0.00016438,2]
[424768439,1781143843000,-151.0,0.00016438,2]
[424768442,1781143843000,-151.0,0.00016438,2]
[424768438,1781143843000,-859.14,0.00016438,2]
[424768441,1781143843000,-151.0,0.00016438,2]
[424768443,1781143843000,-151.0,0.00016438,2]
[424768445,1781143843000,-151.0,0.00016438,2]
[424768444,1781143843000,-151.0,0.00016438,2]
[424768447,1781143843000,-151.0,0.00016438,2]
[424768449,1781143843000,-240.0,0.00016438,2]
[424768446,1781143843000,-152.0,0.00016438,2]
[424768451,1781143843000,-152.0,0.00016438,2]
[424768448,1781143843000,-240.0,0.00016438,2]
[424768450,1781143843000,-152.0,0.00016438,2]
[424768454,1781143843000,-551.06,0.00016662,2]
[424768456,1781143843000,-630.97,0.00016912,2]
[424768453,1781143843000,-2129.0,0.00016509,2]
[424768452,1781143843000,-5060.50245357,0.000165,2]
[424768489,1781143843000,-1107.63007,0.000189,2]
[424768520,1781143843000,-1651.81367706,0.000189,2]
[424768491,1781143843000,-1148.61238259,0.000189,2]
[424768527,1781143843000,-151.0,0.000189,2]
[424768525,1781143843000,-151.0,0.000189,2]
[424768529,1781143843000,-1776.30922209,0.000189,2]
[424768532,1781143843000,-151.0,0.000189,2]
[424768535,1781143843000,-1842.0326633,0.000189,2]
[424768531,1781143843000,-721.12765534,0.000189,2]
[424768528,1781143843000,-500.0,0.000189,2]
[424768534,1781143843000,-500.0,0.000189,2]
[424768533,1781143843000,-151.0,0.000189,2]
[424768530,1781143843000,-151.0,0.000189,2]
[424768536,1781143843000,-151.0,0.000189,2]
[424768538,1781143843000,-151.0,0.000189,2]
[424768548,1781143843000,-151.0,0.000189,2]
[424768540,1781143843000,-500.0,0.000189,2]
[424768550,1781143843000,-151.0,0.000189,2]
[424768549,1781143843000,-500.0,0.000189,2]
[424768544,1781143843000,-1980.8648231,0.000189,2]
[424768543,1781143843000,-151.0,0.000189,2]
[424768546,1781143843000,-151.0,0.000189,2]
[424768542,1781143843000,-1910.18787185,0.000189,2]
[424768547,1781143843000,-209.40437684,0.000189,2]
[424768545,1781143843000,-151.0,0.000189,2]
[424768551,1781143843000,-151.0,0.000189,2]
[424768552,1781143843000,-2054.15682156,0.000189,2]
[424768553,1781143843000,-151.0,0.000189,2]
[424768556,1781143843000,-2080.17592889,0.000189,2]
[424768555,1781143843000,-500.0,0.000189,2]
[424768554,1781143843000,-151.0,0.000189,2]
[424768488,1781143843000,-1068.11,0.000189,2]
[424768526,1781143843000,-151.0,0.000189,2]
[424768524,1781143843000,-1712.93078311,0.000189,2]
[424768541,1781143843000,-151.0,0.000189,2]
[424768521,1781143843000,-151.0,0.000189,2]
[424768492,1781143843000,-209.40437684,0.000189,2]
[424768494,1781143843000,-154.22992786,0.000189,2]
[424768490,1781143843000,-151.0,0.000189,2]
[424768495,1781143843000,-151.0,0.000189,2]
[424768493,1781143843000,-693.39197629,0.000189,2]
[424768496,1781143843000,-1191.11104074,0.000189,2]
[424768497,1781143843000,-174.61919141,0.000189,2]
[424768498,1781143843000,-1235.18214925,0.000189,2]
[424768499,1781143843000,-151.0,0.000189,2]
[424768501,1781143843000,-151.0,0.000189,2]
[424768503,1781143843000,-1377.42282658,0.000189,2]
[424768505,1781143843000,-578.20924308,0.000189,2]
[424768523,1781143843000,-500.0,0.000189,2]
[424768504,1781143843000,-151.0,0.000189,2]
[424768507,1781143843000,-1062.97552649,0.000189,2]
[424768500,1781143843000,-1280.88388877,0.000189,2]
[424768506,1781143843000,-1428.38747117,0.000189,2]
[424768518,1781143843000,-1592.87721992,0.000189,2]
[424768515,1781143843000,-151.0,0.000189,2]
[424768517,1781143843000,-151.0,0.000189,2]
[424768508,1781143843000,-151.0,0.000189,2]
[424768519,1781143843000,-151.0,0.000189,2]
[424768514,1781143843000,-1536.04360648,0.000189,2]
[424768511,1781143843000,-1481.2378076,0.000189,2]
[424768516,1781143843000,-151.0,0.000189,2]
[424768522,1781143843000,-151.0,0.000189,2]
[424768512,1781143843000,-151.0,0.000189,2]
[424768509,1781143843000,-151.0,0.000189,2]
[424768510,1781143843000,-151.0,0.000189,2]
[424768502,1781143843000,-1328.27659266,0.000189,2]
[424768513,1781143843000,-151.0,0.000189,2]
[424768565,1781143844000,-151.0,0.000189,2]
[424768558,1781143844000,-364.12528585,0.000189,2]
[424768562,1781143844000,-151.0,0.000189,2]
[424768557,1781143844000,-151.0,0.000189,2]
[424768561,1781143844000,-500.0,0.000189,2]
[424768560,1781143844000,-151.0,0.000189,2]
[424768563,1781143844000,-209.40437684,0.000189,2]
[424768559,1781143844000,-151.0,0.000189,2]
[424768564,1781143844000,-152.0,0.000189,2]
[424768569,1781143844000,-151.0,0.000189,2]
[424768568,1781143844000,-152.0,0.000189,2]
[424768567,1781143844000,-151.0,0.000189,2]
[424768571,1781143844000,-500.0,0.000189,2]
[424768572,1781143844000,-152.0,0.000189,2]
[424768573,1781143844000,-151.0,0.000189,2]
[424768576,1781143844000,-152.0,0.000189,2]
[424768570,1781143844000,-151.0,0.000189,2]
[424768575,1781143844000,-500.0,0.000189,2]
[424768566,1781143844000,-500.0,0.000189,2]
[424768719,1781143845000,-8956.29040219,0.000209,30]
[424768721,1781143845000,-300.0,0.00020999,2]
[424768722,1781143845000,-300.0,0.00020999,2]
[424768718,1781143845000,-687.0,0.00020848,3]
[424768710,1781143845000,-233.5188934,0.00020544,2]
[424768714,1781143845000,-452.27,0.000207,2]
[424768717,1781143845000,-269.99028785,0.00020848,2]
[424768724,1781143845000,-500.0,0.00021,30]
[424768709,1781143845000,-151.0,0.00020544,2]
[424768711,1781143845000,-151.0,0.00020544,2]
[424768712,1781143845000,-2319.72410669,0.00020544,2]
[424768723,1781143845000,-10000.0,0.00021,10]
[424768726,1781143845000,-15000.0,0.00021,2]
[424768727,1781143845000,-6111.0,0.00021,2]
[424768731,1781143845000,-491.0,0.00021,2]
[424768729,1781143845000,-6111.0,0.00021,2]
[424768730,1781143845000,-279.0,0.00021,2]
[424768720,1781143845000,-300.0,0.00020999,2]
[424768725,1781143845000,-215.92376884,0.00021,10]
[424768743,1781143845000,-14774.75391544,0.00021,2]
[424768733,1781143845000,-354.0,0.00021,2]
[424768744,1781143845000,-321.0,0.00021,2]
[424768734,1781143845000,-348.0,0.00021,2]
[424768713,1781143845000,-652.2631735,0.000206,2]
[424768728,1781143845000,-15000.0,0.00021,2]
[424768715,1781143845000,-212.5,0.00020714,2]
[424768689,1781143845000,-355.0,0.0002,2]
[424768708,1781143845000,-194.72792766,0.00020544,2]
[424768686,1781143845000,-923.0,0.0002,2]
[424768732,1781143845000,-274.0,0.00021,2]
[424768690,1781143845000,-206.0,0.0002,2]
[424768687,1781143845000,-1045.0,0.0002,2]
[424768691,1781143845000,-795.0,0.0002,2]
[424768688,1781143845000,-1624.0,0.0002,2]
[424768692,1781143845000,-932.0,0.0002,2]
[424768685,1781143845000,-292.0,0.0002,2]
[424768684,1781143845000,-348.0,0.0002,2]
[424768694,1781143845000,-321.0,0.0002,2]
[424768702,1781143845000,-687.0,0.00020232,3]
[424768716,1781143845000,-652.2631735,0.000208,2]
[424768706,1781143845000,-433.9,0.00020381,2]
[424768697,1781143845000,-1066.0,0.0002,2]
[424768696,1781143845000,-284.0,0.0002,2]
[424768698,1781143845000,-4449.0,0.0002,2]
[424768704,1781143845000,-1125.0,0.00020319,2]
[424768693,1781143845000,-1066.0,0.0002,2]
[424768701,1781143845000,-652.2631735,0.000202,2]
[424768699,1781143845000,-300.0,0.00020005,2]
[424768695,1781143845000,-1466.9,0.0002,2]
[424768703,1781143845000,-153.80113636,0.00020269,2]
[424768705,1781143845000,-1145.0,0.00020329,7]
[424768707,1781143845000,-652.2631735,0.000204,2]
[424768700,1781143845000,-330.48607955,0.00020177,2]
[424768736,1781143845000,-1045.0,0.00021,2]
[424768735,1781143845000,-292.0,0.00021,2]
[424768737,1781143845000,-1624.0,0.00021,2]
[424768769,1781143845000,-232.53912666,0.00021788,2]
[424768775,1781143845000,-502.0,0.00021918,8]
[424768773,1781143845000,-150.0,0.00021918,2]
[424768774,1781143845000,-502.0,0.00021918,8]
[424768772,1781143845000,-5000.0,0.00021918,2]
[424768771,1781143845000,-6076.0,0.00021806,2]
[424768782,1781143845000,-217.88274734,0.00021999,2]
[424768776,1781143845000,-502.0,0.00021918,8]
[424768770,1781143845000,-3643.0,0.00021806,2]
[424768777,1781143845000,-1000.0,0.00021918,10]
[424768778,1781143845000,-150.0,0.00021918,2]
[424768779,1781143845000,-151.0,0.00021997,2]
[424768780,1781143845000,-300.0,0.00021999,2]
[424768795,1781143845000,-279.0,0.00022,2]
[424768798,1781143845000,-151.0,0.00022,2]
[424768786,1781143845000,-305.07573092,0.00021999,2]
[424768784,1781143845000,-300.0,0.00021999,2]
[424768799,1781143845000,-151.0,0.00022,2]
[424768788,1781143845000,-1517.01536201,0.00022,30]
[424768797,1781143845000,-274.0,0.00022,2]
[424768800,1781143845000,-151.0,0.00022,2]
[424768796,1781143845000,-491.0,0.00022,2]
[424768790,1781143845000,-377508.1722672,0.00022,4]
[424768792,1781143845000,-215.92376884,0.00022,30]
[424768738,1781143845000,-355.0,0.00021,2]
[424768763,1781143845000,-151.0,0.0002164,2]
[424768767,1781143845000,-1466.9,0.00021679,2]
[424768794,1781143845000,-450.0,0.00022,2]
[424768766,1781143845000,-2494.55939288,0.0002164,2]
[424768740,1781143845000,-932.0,0.00021,2]
[424768742,1781143845000,-6111.0,0.00021,2]
[424768741,1781143845000,-15000.0,0.00021,2]
[424768739,1781143845000,-206.0,0.00021,2]
[424768752,1781143845000,-151.0,0.00021092,2]
[424768746,1781143845000,-284.98242931,0.00021,10]
[424768765,1781143845000,-151.0,0.0002164,2]
[424768749,1781143845000,-201.93286098,0.00021092,2]
[424768745,1781143845000,-284.0,0.00021,2]
[424768747,1781143845000,-1066.0,0.00021,2]
[424768754,1781143845000,-1125.0,0.00021334,2]
[424768748,1781143845000,-2504.78,0.00021087,2]
[424768750,1781143845000,-151.0,0.00021092,2]
[424768755,1781143845000,-290.32100447,0.00021464,2]
[424768753,1781143845000,-2405.55389863,0.00021092,2]
[424768756,1781143845000,-687.0,0.00021465,4]
[424768768,1781143845000,-197.39,0.000217,7]
[424768758,1781143845000,-153.80113636,0.00021638,2]
[424768757,1781143845000,-152.0,0.0002162,3]
[424768760,1781143845000,-151.0,0.00021639,2]
[424768759,1781143845000,-599.60298507,0.00021639,2]
[424768761,1781143845000,-747.80937859,0.00021639,2]
[424768762,1781143845000,-209.40437684,0.0002164,2]
[424768764,1781143845000,-251.11897888,0.0002164,2]
[424768751,1781143845000,-242.15909246,0.00021092,2]
[424768836,1781143846000,-165.06322829,0.00022401,2]
[424768837,1781143846000,-150.0,0.00022426,2]
[424768833,1781143846000,-250.76960971,0.00022188,2]
[424768828,1781143846000,-1066.0,0.00022,2]
[424768830,1781143846000,-217.15233878,0.00022188,2]
[424768835,1781143846000,-433.9,0.00022353,2]
[424768832,1781143846000,-260.4103811,0.00022188,2]
[424768834,1781143846000,-2586.85809042,0.00022188,2]
[424768838,1781143846000,-3556.0,0.00022426,2]
[424768831,1781143846000,-151.0,0.00022188,2]
[424768840,1781143846000,-382.0,0.00022426,2]
[424768852,1781143846000,-274.0,0.00023,2]
[424768839,1781143846000,-1358.0,0.00022426,2]
[424768844,1781143846000,-687.0,0.00022697,5]
[424768846,1781143846000,-225.18697532,0.00022736,2]
[424768842,1781143846000,-1227.0,0.00022426,2]
[424768841,1781143846000,-1274.0,0.00022426,2]
[424768845,1781143846000,-1160.586699,0.000227,7]
[424768848,1781143846000,-270.0455652,0.00022736,2]
[424768843,1781143846000,-1511.32,0.00022466,2]
[424768849,1781143846000,-2682.57183977,0.00022736,2]
[424768847,1781143846000,-275.05918479,0.00022736,2]
[424768851,1781143846000,-491.0,0.00023,2]
[424768829,1781143846000,-687.0,0.00022081,4]
[424768850,1781143846000,-279.0,0.00023,2]
[424768827,1781143846000,-151.0,0.00022,2]
[424768815,1781143846000,-206.0,0.00022,2]
[424768820,1781143846000,-151.0,0.00022,2]
[424768854,1781143846000,-354.0,0.00023,2]
[424768801,1781143846000,-151.0,0.00022,2]
[424768804,1781143846000,-187.586681,0.00022,2]
[424768805,1781143846000,-354.0,0.00022,2]
[424768806,1781143846000,-151.0,0.00022,2]
[424768802,1781143846000,-151.0,0.00022,2]
[424768803,1781143846000,-151.0,0.00022,2]
[424768807,1781143846000,-151.0,0.00022,2]
[424768810,1781143846000,-1045.0,0.00022,2]
[424768814,1781143846000,-355.0,0.00022,2]
[424768811,1781143846000,-1624.0,0.00022,2]
[424768819,1781143846000,-284.98242931,0.00022,30]
[424768812,1781143846000,-151.0,0.00022,2]
[424768809,1781143846000,-292.0,0.00022,2]
[424768813,1781143846000,-152.050253,0.00022,2]
[424768816,1781143846000,-932.0,0.00022,2]
[424768821,1781143846000,-284.0,0.00022,2]
[424768823,1781143846000,-697.854733,0.00022,2]
[424768826,1781143846000,-151.0,0.00022,2]
[424768822,1781143846000,-697.854733,0.00022,2]
[424768824,1781143846000,-697.854733,0.00022,2]
[424768825,1781143846000,-697.854733,0.00022,2]
[424768817,1781143846000,-321.0,0.00022,2]
[424768818,1781143846000,-169.05,0.00022,2]
[424768808,1781143846000,-348.0,0.00022,2]
[424768853,1781143846000,-176.11013466,0.00023,2]
[424768914,1781143846000,-153.80113636,0.00024376,2]
[424768863,1781143846000,-206.0,0.00023,2]
[424768896,1781143846000,-354.77158865,0.00024,2]
[424768898,1781143846000,-293.48519531,0.00024,2]
[424768899,1781143846000,-1045.0,0.00024,2]
[424768901,1781143846000,-1639.99805984,0.00024,2]
[424768897,1781143846000,-357.98133607,0.00024,2]
[424768907,1781143846000,-1069.96266565,0.00024,2]
[424768903,1781143846000,-224.9302677,0.00024,2]
[424768905,1781143846000,-336.6183582,0.00024,2]
[424768902,1781143846000,-364.86338781,0.00024,2]
[424768908,1781143846000,-314.63,0.0002411,2]
[424768904,1781143846000,-946.18303554,0.00024,2]
[424768892,1781143846000,-281.64600946,0.00024,2]
[424768906,1781143846000,-293.95091915,0.00024,2]
[424768921,1781143846000,-150.04676898,0.0002446,2]
[424768920,1781143846000,-233.11,0.00024389,2]
[424768909,1781143846000,-150.0,0.00024164,2]
[424768911,1781143846000,-500.0,0.00024219,2]
[424768912,1781143846000,-433.9,0.00024324,2]
[424768913,1781143846000,-366.89611386,0.00024324,2]
[424768915,1781143846000,-621.78829552,0.00024378,2]
[424768916,1781143846000,-151.0,0.00024378,2]
[424768918,1781143846000,-251.11897888,0.0002438,2]
[424768917,1781143846000,-775.4783256,0.00024378,2]
[424768866,1781143846000,-932.0,0.00023,2]
[424768910,1781143846000,-452.28,0.000242,7]
[424768890,1781143846000,-500.0,0.00024,2]
[424768919,1781143846000,-2991.49051684,0.0002438,2]
[424768886,1781143846000,-731.60666986,0.0002387,2]
[424768888,1781143846000,-687.0,0.00023929,6]
[424768855,1781143846000,-348.0,0.00023,2]
[424768861,1781143846000,-355.0,0.00023,2]
[424768857,1781143846000,-1045.0,0.00023,2]
[424768868,1781143846000,-321.0,0.00023,2]
[424768859,1781143846000,-1624.0,0.00023,2]
[424768871,1781143846000,-1066.0,0.00023,2]
[424768872,1781143846000,-153.80113636,0.00023007,2]
[424768875,1781143846000,-152.48332248,0.00023284,2]
[424768879,1781143846000,-687.0,0.00023313,6]
[424768878,1781143846000,-175.03924871,0.00023294,2]
[424768874,1781143846000,-233.5188934,0.00023284,2]
[424768856,1781143846000,-292.0,0.00023,2]
[424768873,1781143846000,-150.0,0.00023014,2]
[424768880,1781143846000,-1466.9,0.00023357,7]
[424768876,1781143846000,-2781.82699784,0.00023284,2]
[424768870,1781143846000,-284.0,0.00023,2]
[424768881,1781143846000,-5000.0,0.00023465,2]
[424768883,1781143846000,-242.15909246,0.00023832,2]
[424768895,1781143846000,-288.99872234,0.00024,2]
[424768894,1781143846000,-499.50088181,0.00024,2]
[424768885,1781143846000,-175.0,0.00023855,10]
[424768882,1781143846000,-152.0,0.00023557,4]
[424768884,1781143846000,-2884.75459676,0.00023832,2]
[424768877,1781143846000,-150.0,0.00023288,2]
[424768958,1781143847000,-392.958372,0.00014899,2]
[424768959,1781143847000,-729.75054471,0.00026384,2]
[424768957,1781143847000,-1125.241628,0.00014899,2]
[424768955,1781143847000,-1165.276632,0.00026384,2]
[424768952,1781143847000,-224.73,0.00026027,7]
[424768951,1781143847000,-221.82909047,0.00026024,2]
[424768954,1781143847000,-433.9,0.00026296,2]
[424768961,1781143847000,-1165.276632,0.00026384,2]
[424768950,1781143847000,-215.92376884,0.00026,7]
[424768956,1781143847000,-83.96501682,0.00026384,2]
[424768960,1781143847000,-351.56107047,0.00026384,2]
[424768963,1781143847000,-1165.276632,0.00026384,2]
[424768974,1781143847000,-9020.94,0.00027101,120]
[424768964,1781143847000,-1165.276632,0.00026384,2]
[424768965,1781143847000,-1165.276632,0.00026384,2]
[424768966,1781143847000,-1165.276632,0.00026384,2]
[424768969,1781143847000,-1466.9,0.00026715,7]
[424768967,1781143847000,-687.0,0.00026394,9]
[424768968,1781143847000,-150.0,0.00026641,2]
[424768970,1781143847000,-182.0,0.00026925,2]
[424768972,1781143847000,-150.0,0.00027,2]
[424768946,1781143847000,-687.0,0.00025778,8]
[424768973,1781143847000,-687.0,0.0002701,9]
[424768962,1781143847000,-1165.276632,0.00026384,2]
[424768953,1781143847000,-150.0,0.00026028,2]
[424768933,1781143847000,-1466.9,0.00025036,7]
[424768949,1781143847000,-550.0,0.00026,2]
[424768971,1781143847000,-167.14,0.00027,2]
[424768922,1781143847000,-687.0,0.00024545,7]
[424768926,1781143847000,-169.05,0.00024744,7]
[424768925,1781143847000,-150.0,0.00024658,2]
[424768930,1781143847000,-163.33638475,0.00025,15]
[424768932,1781143847000,-37462.39206766,0.00025,2]
[424768928,1781143847000,-6076.0,0.00024806,2]
[424768924,1781143847000,-170.1,0.00024658,2]
[424768923,1781143847000,-1000.0,0.00024658,2]
[424768927,1781143847000,-3643.0,0.00024806,2]
[424768929,1781143847000,-260.4103811,0.00024928,2]
[424768947,1781143847000,-452.27,0.000259,7]
[424768931,1781143847000,-629.11802697,0.00025,5]
[424768944,1781143847000,-152.0,0.00025494,5]
[424768937,1781143847000,-150.0,0.00025426,2]
[424768943,1781143847000,-270.0455652,0.00025476,2]
[424768936,1781143847000,-452.28,0.000254,7]
[424768942,1781143847000,-1227.0,0.00025426,2]
[424768935,1781143847000,-150.0,0.00025373,2]
[424768941,1781143847000,-1274.0,0.00025426,2]
[424768940,1781143847000,-382.0,0.00025426,2]
[424768938,1781143847000,-3556.0,0.00025426,2]
[424768939,1781143847000,-1358.0,0.00025426,2]
[424768945,1781143847000,-153.80113636,0.00025745,2]
[424768934,1781143847000,-687.0,0.00025162,7]
[424768976,1781143847000,-11087.49800119,0.00027115,2]
[424768948,1781143847000,-162.0,0.0002593,2]
[424768978,1781143847000,-4516.32150665,0.00027115,2]
[424769003,1781143847000,-150.0,0.00027397,2]
[424769002,1781143847000,-150.0,0.00027397,2]
[424769005,1781143847000,-150.0,0.00027397,2]
[424769006,1781143847000,-150.0,0.00027397,2]
[424769004,1781143847000,-150.0,0.00027397,2]
[424769011,1781143847000,-150.0,0.00027397,2]
[424769010,1781143847000,-150.0,0.00027397,2]
[424769018,1781143847000,-150.0,0.00027397,2]
[424769019,1781143847000,-150.0,0.00027397,2]
[424769015,1781143847000,-150.0,0.00027397,2]
[424769014,1781143847000,-150.0,0.00027397,2]
[424769000,1781143847000,-150.0,0.00027397,2]
[424769013,1781143847000,-150.0,0.00027397,2]
[424769017,1781143847000,-150.0,0.00027397,2]
[424769020,1781143847000,-150.0,0.00027397,2]
[424769024,1781143847000,-150.0,0.00027397,2]
[424769021,1781143847000,-150.0,0.00027397,2]
[424769023,1781143847000,-150.0,0.00027397,2]
[424769025,1781143847000,-150.0,0.00027397,2]
[424769022,1781143847000,-150.0,0.00027397,2]
[424769028,1781143847000,-150.0,0.00027397,2]
[424769027,1781143847000,-150.0,0.00027397,2]
[424769029,1781143847000,-150.0,0.00027397,2]
[424768975,1781143847000,-153.80113636,0.00027114,2]
[424769016,1781143847000,-150.0,0.00027397,2]
[424769007,1781143847000,-150.0,0.00027397,2]
[424769012,1781143847000,-150.0,0.00027397,2]
[424769001,1781143847000,-150.0,0.00027397,2]
[424769026,1781143847000,-150.0,0.00027397,2]
[424768977,1781143847000,-281.6393173,0.00027115,2]
[424768982,1781143847000,-218.23315283,0.000273,30]
[424768979,1781143847000,-644.79446245,0.00027117,2]
[424768981,1781143847000,-804.17102365,0.00027117,2]
[424768980,1781143847000,-151.0,0.00027117,2]
[424768983,1781143847000,-150.0,0.00027397,2]
[424768984,1781143847000,-150.0,0.00027397,2]
[424768992,1781143847000,-150.0,0.00027397,2]
[424768991,1781143847000,-150.0,0.00027397,2]
[424768994,1781143847000,-150.0,0.00027397,2]
[424768988,1781143847000,-150.0,0.00027397,2]
[424768985,1781143847000,-150.0,0.00027397,2]
[424769008,1781143847000,-150.0,0.00027397,2]
[424768998,1781143847000,-150.0,0.00027397,2]
[424768995,1781143847000,-150.0,0.00027397,2]
[424769009,1781143847000,-150.0,0.00027397,2]
[424768999,1781143847000,-150.0,0.00027397,2]
[424768990,1781143847000,-150.0,0.00027397,2]
[424768996,1781143847000,-150.0,0.00027397,2]
[424768993,1781143847000,-150.0,0.00027397,2]